[Event "Titled Tuesday Blitz April 25 Early 2023"]
[White "Kravtsiv, Martyn"]
[Black "Bruedigam, Martin"]
[WhiteFideId "14113147"]
[BlackFideId "24608033"]
[WhiteElo "2695"]
[BlackElo "2331"]
[Result "1-0"]
[Round "05"]
[TimeControl "180+2"]
[Date "2023.04.25"]
[WhiteClock "0:00:42"]
[BlackClock "0:00:07"]

1. e4 {[%clk 0:03:00]}  c6 {[%clk 0:03:00]} 2. Nf3 {[%clk 0:03:01]}  d5 {[%clk 0:03:00]} 3. d3 {[%clk 0:03:01]}  Bg4 {[%clk 0:02:58]} 4. h3 {[%clk 0:02:59]}  Bh5 {[%clk 0:02:57]} 5. Qe2 {[%clk 0:02:58]}  e6 {[%clk 0:02:55]} 6. Nc3 {[%clk 0:02:56]}  Nd7 {[%clk 0:02:55]} 7. g4 {[%clk 0:02:46]}  dxe4 {[%clk 0:02:54]} 8. dxe4 {[%clk 0:02:46]}  Bg6 {[%clk 0:02:53]} 9. Bd2 {[%clk 0:02:37]}  Qc7 {[%clk 0:02:53]} 10. O-O-O {[%clk 0:02:35]}  Bd6 {[%clk 0:02:52]} 11. Nh4 {[%clk 0:02:26]}  Ne7 {[%clk 0:02:36]} 12. Bg2 {[%clk 0:02:18]}  h6 {[%clk 0:02:34]} 13. Kb1 {[%clk 0:02:16]}  Bh7 {[%clk 0:02:34]} 14. g5 {[%clk 0:02:07]}  hxg5 {[%clk 0:02:18]} 15. Bxg5 {[%clk 0:02:07]}  Ng6 {[%clk 0:02:14]} 16. Nxg6 {[%clk 0:01:45]}  Bxg6 {[%clk 0:02:13]} 17. Qd2 {[%clk 0:01:45]}  Be5 {[%clk 0:01:51]} 18. f4 {[%clk 0:01:44]}  Bf6 {[%clk 0:01:51]} 19. Bxf6 {[%clk 0:01:26]}  Nxf6 {[%clk 0:01:44]} 20. e5 {[%clk 0:01:26]}  Nd5 {[%clk 0:01:37]} 21. Bxd5 {[%clk 0:01:23]}  exd5 {[%clk 0:01:31]} 22. Qg2 {[%clk 0:01:21]}  O-O-O {[%clk 0:01:26]} 23. a3 {[%clk 0:01:03]}  Kb8 {[%clk 0:01:22]} 24. h4 {[%clk 0:00:58]}  d4 {[%clk 0:00:41]} 25. Ne4 {[%clk 0:00:55]}  Bxe4 {[%clk 0:00:32]} 26. Qxe4 {[%clk 0:00:56]}  c5 {[%clk 0:00:31]} 27. h5 {[%clk 0:00:50]}  Rh6 {[%clk 0:00:26]} 28. Rhg1 {[%clk 0:00:48]}  Rxh5 {[%clk 0:00:17]} 29. Rxg7 {[%clk 0:00:47]}  Qe7 {[%clk 0:00:18]} 30. f5 {[%clk 0:00:43]}  Re8 {[%clk 0:00:09]} 31. e6 {[%clk 0:00:42]}  Qf6 {[%clk 0:00:07]} 32. Rxf7 {[%clk 0:00:42]} 1-0


[Site "https://www.chess.com"]

[Event "Titled Tuesday Blitz April 25 Early 2023"]
[White "Kozin, Yuri"]
[Black "Kukhmazov, Arsen"]
[WhiteFideId "4129920"]
[BlackFideId "24108260"]
[WhiteElo "2623"]
[BlackElo "2396"]
[Result "0-1"]
[Round "05"]
[TimeControl "180+2"]
[Date "2023.04.25"]
[WhiteClock "0:00:24"]
[BlackClock "0:00:18"]

1. e4 {[%clk 0:03:00]}  e5 {[%clk 0:02:59]} 2. Nf3 {[%clk 0:03:00]}  Nc6 {[%clk 0:03:00]} 3. Bb5 {[%clk 0:03:00]}  a6 {[%clk 0:03:00]} 4. Ba4 {[%clk 0:03:01]}  Nf6 {[%clk 0:03:01]} 5. O-O {[%clk 0:03:01]}  Nxe4 {[%clk 0:03:01]} 6. d4 {[%clk 0:03:01]}  b5 {[%clk 0:03:02]} 7. Bb3 {[%clk 0:03:01]}  d5 {[%clk 0:03:02]} 8. dxe5 {[%clk 0:03:02]}  Be6 {[%clk 0:03:03]} 9. Be3 {[%clk 0:03:02]}  Be7 {[%clk 0:03:00]} 10. Nbd2 {[%clk 0:03:00]}  Nc5 {[%clk 0:02:59]} 11. c3 {[%clk 0:02:59]}  Nxb3 {[%clk 0:02:48]} 12. Nxb3 {[%clk 0:02:58]}  O-O {[%clk 0:02:48]} 13. Bc5 {[%clk 0:02:57]}  Bg4 {[%clk 0:02:16]} 14. Bxe7 {[%clk 0:02:54]}  Qxe7 {[%clk 0:02:17]} 15. Qxd5 {[%clk 0:02:49]}  Bxf3 {[%clk 0:02:18]} 16. Qxf3 {[%clk 0:02:49]}  Nxe5 {[%clk 0:02:19]} 17. Qb7 {[%clk 0:02:35]}  Nc4 {[%clk 0:02:12]} 18. Rfe1 {[%clk 0:02:28]}  Qd6 {[%clk 0:02:12]} 19. Rad1 {[%clk 0:02:25]}  Qb6 {[%clk 0:02:12]} 20. Qxb6 {[%clk 0:02:11]}  cxb6 {[%clk 0:02:13]} 21. Re2 {[%clk 0:02:08]}  Rfe8 {[%clk 0:02:14]} 22. Rde1 {[%clk 0:02:07]}  Rxe2 {[%clk 0:02:14]} 23. Rxe2 {[%clk 0:02:08]}  Rd8 {[%clk 0:02:05]} 24. Nd4 {[%clk 0:02:07]}  g6 {[%clk 0:02:01]} 25. g3 {[%clk 0:02:06]}  b4 {[%clk 0:02:01]} 26. Nc6 {[%clk 0:01:53]}  Rd1+ {[%clk 0:02:01]} 27. Kg2 {[%clk 0:01:54]}  bxc3 {[%clk 0:01:59]} 28. bxc3 {[%clk 0:01:54]}  Rc1 {[%clk 0:01:56]} 29. Nb4 {[%clk 0:01:51]}  a5 {[%clk 0:01:56]} 30. Nd5 {[%clk 0:01:49]}  Rd1 {[%clk 0:01:53]} 31. Nf4 {[%clk 0:01:22]}  a4 {[%clk 0:01:33]} 32. Re4 {[%clk 0:01:11]}  b5 {[%clk 0:01:34]} 33. Re8+ {[%clk 0:01:09]}  Kg7 {[%clk 0:01:34]} 34. Rb8 {[%clk 0:01:10]}  Na3 {[%clk 0:01:34]} 35. h4 {[%clk 0:01:06]}  Rd2 {[%clk 0:01:33]} 36. g4 {[%clk 0:01:04]}  Rxa2 {[%clk 0:01:16]} 37. g5 {[%clk 0:01:04]}  Rd2 {[%clk 0:01:10]} 38. Kg3 {[%clk 0:00:55]}  Nc4 {[%clk 0:01:04]} 39. h5 {[%clk 0:00:54]}  gxh5 {[%clk 0:00:59]} 40. Rxb5 {[%clk 0:00:41]}  h4+ {[%clk 0:00:45]} 41. Kg4 {[%clk 0:00:39]}  Rxf2 {[%clk 0:00:34]} 42. Rb8 {[%clk 0:00:39]}  Ne3+ {[%clk 0:00:32]} 43. Kxh4 {[%clk 0:00:23]}  Rxf4+ {[%clk 0:00:33]} 44. Kh5 {[%clk 0:00:24]}  Nf5 {[%clk 0:00:28]} 45. g6 {[%clk 0:00:24]}  hxg6+ {[%clk 0:00:18]} 46. Kg5 {[%clk 0:00:24]}  Re4 {[%clk 0:00:17]} 47. Rb7 {[%clk 0:00:24]}  a3 {[%clk 0:00:17]} 48. Ra7 {[%clk 0:00:24]}  a2 {[%clk 0:00:18]} 0-1


[Site "https://www.chess.com"]

[Event "Titled Tuesday Blitz April 25 Early 2023"]
[White "Sielecki, Christof"]
[Black "Mekhitarian, Krikor Sevag"]
[WhiteFideId "4620437"]
[BlackFideId "2107660"]
[WhiteElo "2443"]
[BlackElo "2604"]
[Result "1/2-1/2"]
[Round "05"]
[TimeControl "180+2"]
[Date "2023.04.25"]
[WhiteClock "0:00:22"]
[BlackClock "0:00:11"]

1. e4 {[%clk 0:03:00]}  c5 {[%clk 0:02:52]} 2. Nf3 {[%clk 0:03:00]}  e6 {[%clk 0:02:48]} 3. c3 {[%clk 0:02:59]}  Nf6 {[%clk 0:02:47]} 4. e5 {[%clk 0:03:00]}  Nd5 {[%clk 0:02:46]} 5. g3 {[%clk 0:03:01]}  d6 {[%clk 0:02:39]} 6. exd6 {[%clk 0:03:00]}  Nc6 {[%clk 0:02:38]} 7. Bg2 {[%clk 0:03:00]}  Bxd6 {[%clk 0:02:36]} 8. O-O {[%clk 0:03:01]}  O-O {[%clk 0:02:35]} 9. d4 {[%clk 0:03:01]}  cxd4 {[%clk 0:02:25]} 10. Nxd4 {[%clk 0:03:02]}  Nxd4 {[%clk 0:02:25]} 11. Qxd4 {[%clk 0:03:02]}  Qc7 {[%clk 0:02:25]} 12. c4 {[%clk 0:02:57]}  Be5 {[%clk 0:02:01]} 13. Qe4 {[%clk 0:02:39]}  Ne7 {[%clk 0:01:44]} 14. Nc3 {[%clk 0:02:36]}  Bxc3 {[%clk 0:01:38]} 15. bxc3 {[%clk 0:02:35]}  Nc6 {[%clk 0:01:32]} 16. Ba3 {[%clk 0:02:30]}  Rd8 {[%clk 0:01:29]} 17. Rfd1 {[%clk 0:02:28]}  Rxd1+ {[%clk 0:01:25]} 18. Rxd1 {[%clk 0:02:27]}  Bd7 {[%clk 0:01:26]} 19. Qd3 {[%clk 0:01:55]}  Be8 {[%clk 0:01:23]} 20. Qd6 {[%clk 0:00:56]}  Qxd6 {[%clk 0:01:22]} 21. Bxd6 {[%clk 0:00:56]}  Rc8 {[%clk 0:01:22]} 22. Bc5 {[%clk 0:00:50]}  b6 {[%clk 0:01:11]} 23. Bxc6 {[%clk 0:00:36]}  Bxc6 {[%clk 0:01:08]} 24. Be7 {[%clk 0:00:35]}  f6 {[%clk 0:00:57]} 25. Rd8+ {[%clk 0:00:35]}  Rxd8 {[%clk 0:00:57]} 26. Bxd8 {[%clk 0:00:36]}  Kf7 {[%clk 0:00:55]} 27. Bc7 {[%clk 0:00:36]}  e5 {[%clk 0:00:44]} 28. Bb8 {[%clk 0:00:36]}  a6 {[%clk 0:00:44]} 29. Ba7 {[%clk 0:00:36]}  b5 {[%clk 0:00:44]} 30. cxb5 {[%clk 0:00:36]}  axb5 {[%clk 0:00:38]} 31. f4 {[%clk 0:00:36]}  exf4 {[%clk 0:00:36]} 32. gxf4 {[%clk 0:00:37]}  Ke6 {[%clk 0:00:37]} 33. Kf2 {[%clk 0:00:37]}  Kf5 {[%clk 0:00:37]} 34. Kg3 {[%clk 0:00:37]}  Bd5 {[%clk 0:00:33]} 35. a3 {[%clk 0:00:36]}  Bc4 {[%clk 0:00:33]} 36. Bc5 {[%clk 0:00:35]}  h5 {[%clk 0:00:28]} 37. Bf8 {[%clk 0:00:33]}  g6 {[%clk 0:00:28]} 38. Bc5 {[%clk 0:00:32]}  h4+ {[%clk 0:00:23]} 39. Kf3 {[%clk 0:00:30]}  Bd5+ {[%clk 0:00:22]} 40. Ke3 {[%clk 0:00:30]}  Bc6 {[%clk 0:00:06]} 41. Be7 {[%clk 0:00:29]}  h3 {[%clk 0:00:06]} 42. Bd8 {[%clk 0:00:29]}  Bd5 {[%clk 0:00:06]} 43. Be7 {[%clk 0:00:29]}  Bc6 {[%clk 0:00:06]} 44. Bd8 {[%clk 0:00:29]}  g5 {[%clk 0:00:07]} 45. fxg5 {[%clk 0:00:29]}  fxg5 {[%clk 0:00:08]} 46. Bc7 {[%clk 0:00:29]}  g4 {[%clk 0:00:08]} 47. Kd4 {[%clk 0:00:29]}  Bf3 {[%clk 0:00:08]} 48. Kc5 {[%clk 0:00:29]}  Be2 {[%clk 0:00:07]} 49. Kb4 {[%clk 0:00:29]}  Ke6 {[%clk 0:00:08]} 50. a4 {[%clk 0:00:28]}  bxa4 {[%clk 0:00:08]} 51. Kxa4 {[%clk 0:00:29]}  Kd5 {[%clk 0:00:09]} 52. Kb4 {[%clk 0:00:28]}  Bc4 {[%clk 0:00:10]} 53. Bg3 {[%clk 0:00:28]}  Bd3 {[%clk 0:00:10]} 54. c4+ {[%clk 0:00:25]}  Bxc4 {[%clk 0:00:11]} 55. Kc3 {[%clk 0:00:22]} 1/2-1/2


[Site "https://www.chess.com"]

[Event "Titled Tuesday Blitz April 25 Early 2023"]
[White "Azarov, Sergei"]
[Black "Sliwicka, Alicja"]
[WhiteFideId "13501470"]
[BlackFideId "1150677"]
[WhiteElo "2475"]
[BlackElo "2206"]
[Result "1-0"]
[Round "05"]
[TimeControl "180+2"]
[Date "2023.04.25"]
[WhiteClock "0:01:20"]
[BlackClock "0:00:44"]

1. e4 {[%clk 0:02:42]}  c6 {[%clk 0:02:58]} 2. Nc3 {[%clk 0:02:40]}  g6 {[%clk 0:02:52]} 3. d4 {[%clk 0:02:39]}  Bg7 {[%clk 0:02:52]} 4. Nf3 {[%clk 0:02:40]}  d5 {[%clk 0:02:51]} 5. h3 {[%clk 0:02:40]}  dxe4 {[%clk 0:02:49]} 6. Nxe4 {[%clk 0:02:39]}  Nf6 {[%clk 0:02:49]} 7. Nxf6+ {[%clk 0:02:39]}  exf6 {[%clk 0:02:47]} 8. Bc4 {[%clk 0:02:36]}  O-O {[%clk 0:02:47]} 9. O-O {[%clk 0:02:36]}  f5 {[%clk 0:02:46]} 10. Bf4 {[%clk 0:02:33]}  Nd7 {[%clk 0:02:44]} 11. c3 {[%clk 0:02:29]}  Nb6 {[%clk 0:02:44]} 12. Bb3 {[%clk 0:02:29]}  Nd5 {[%clk 0:02:43]} 13. Be5 {[%clk 0:02:29]}  Bxe5 {[%clk 0:02:35]} 14. Nxe5 {[%clk 0:02:27]}  Be6 {[%clk 0:02:25]} 15. Re1 {[%clk 0:02:26]}  Qg5 {[%clk 0:02:24]} 16. Qf3 {[%clk 0:02:18]}  h5 {[%clk 0:02:18]} 17. c4 {[%clk 0:02:15]}  Nb6 {[%clk 0:02:10]} 18. d5 {[%clk 0:02:14]}  cxd5 {[%clk 0:02:06]} 19. cxd5 {[%clk 0:02:14]}  Bd7 {[%clk 0:02:04]} 20. d6 {[%clk 0:02:14]}  Be6 {[%clk 0:01:55]} 21. Bxe6 {[%clk 0:02:07]}  fxe6 {[%clk 0:01:56]} 22. Qxb7 {[%clk 0:02:05]}  Rad8 {[%clk 0:01:52]} 23. Qe7 {[%clk 0:01:51]}  Qf6 {[%clk 0:01:36]} 24. Nc6 {[%clk 0:01:44]}  Rde8 {[%clk 0:01:20]} 25. Qxa7 {[%clk 0:01:42]}  Nc8 {[%clk 0:01:13]} 26. Qc7 {[%clk 0:01:30]}  Rd8 {[%clk 0:00:43]} 27. Nxd8 {[%clk 0:01:25]}  Rxd8 {[%clk 0:00:44]} 28. d7 {[%clk 0:01:20]} 1-0


[Site "https://www.chess.com"]

[Event "Titled Tuesday Blitz April 25 Early 2023"]
[White "Szpar, Milosz"]
[Black "Elgersma, Onno"]
[WhiteFideId "1184989"]
[BlackFideId "1053531"]
[WhiteElo "2436"]
[BlackElo "2252"]
[Result "0-1"]
[Round "05"]
[TimeControl "180+2"]
[Date "2023.04.25"]
[WhiteClock "0:00:17"]
[BlackClock "0:00:19"]

1. e4 {[%clk 0:03:00]}  c6 {[%clk 0:03:00]} 2. d4 {[%clk 0:02:58]}  d5 {[%clk 0:03:00]} 3. e5 {[%clk 0:02:58]}  Bf5 {[%clk 0:03:00]} 4. h4 {[%clk 0:02:58]}  h5 {[%clk 0:03:00]} 5. c4 {[%clk 0:02:55]}  e6 {[%clk 0:02:59]} 6. Nc3 {[%clk 0:02:53]}  Nd7 {[%clk 0:02:47]} 7. cxd5 {[%clk 0:02:52]}  cxd5 {[%clk 0:02:44]} 8. Bd3 {[%clk 0:02:51]}  Bxd3 {[%clk 0:02:38]} 9. Qxd3 {[%clk 0:02:52]}  Ne7 {[%clk 0:02:39]} 10. Bg5 {[%clk 0:02:52]}  Qb6 {[%clk 0:02:38]} 11. Nf3 {[%clk 0:02:51]}  Nc6 {[%clk 0:02:37]} 12. O-O {[%clk 0:02:47]}  Rc8 {[%clk 0:02:14]} 13. Nxd5 {[%clk 0:02:41]}  exd5 {[%clk 0:02:09]} 14. e6 {[%clk 0:02:41]}  Nf6 {[%clk 0:02:00]} 15. exf7+ {[%clk 0:02:18]}  Kxf7 {[%clk 0:01:59]} 16. Qf5 {[%clk 0:02:17]}  Re8 {[%clk 0:01:47]} 17. Rae1 {[%clk 0:01:50]}  Nxd4 {[%clk 0:01:16]} 18. Nxd4 {[%clk 0:01:26]}  Qxd4 {[%clk 0:01:16]} 19. Rxe8 {[%clk 0:01:27]}  Kxe8 {[%clk 0:01:13]} 20. Qe6+ {[%clk 0:01:25]}  Kd8 {[%clk 0:00:49]} 21. Rc1 {[%clk 0:01:25]}  Bc5 {[%clk 0:00:49]} 22. Be3 {[%clk 0:01:11]}  Re8 {[%clk 0:00:49]} 23. Bxd4 {[%clk 0:01:00]}  Rxe6 {[%clk 0:00:47]} 24. Bxc5 {[%clk 0:00:56]}  Rc6 {[%clk 0:00:47]} 25. Be3 {[%clk 0:00:45]}  Rxc1+ {[%clk 0:00:47]} 26. Bxc1 {[%clk 0:00:46]}  Kd7 {[%clk 0:00:48]} 27. f3 {[%clk 0:00:44]}  d4 {[%clk 0:00:43]} 28. Kf2 {[%clk 0:00:41]}  Ke6 {[%clk 0:00:44]} 29. Bg5 {[%clk 0:00:35]}  Nd7 {[%clk 0:00:42]} 30. b3 {[%clk 0:00:29]}  Kd5 {[%clk 0:00:41]} 31. Ke2 {[%clk 0:00:29]}  Ne5 {[%clk 0:00:39]} 32. Bf4 {[%clk 0:00:29]}  Ng6 {[%clk 0:00:38]} 33. Bg3 {[%clk 0:00:28]}  Nf8 {[%clk 0:00:38]} 34. Bb8 {[%clk 0:00:26]}  a6 {[%clk 0:00:38]} 35. g4 {[%clk 0:00:22]}  g6 {[%clk 0:00:36]} 36. Bg3 {[%clk 0:00:18]}  Ne6 {[%clk 0:00:36]} 37. Kd2 {[%clk 0:00:18]}  Nc5 {[%clk 0:00:35]} 38. gxh5 {[%clk 0:00:17]}  gxh5 {[%clk 0:00:36]} 39. Bf2 {[%clk 0:00:16]}  Ne6 {[%clk 0:00:36]} 40. Bg3 {[%clk 0:00:16]}  Ng7 {[%clk 0:00:34]} 41. Bf4 {[%clk 0:00:15]}  Ne6 {[%clk 0:00:28]} 42. Bg3 {[%clk 0:00:14]}  b5 {[%clk 0:00:28]} 43. Kd3 {[%clk 0:00:13]}  Nc5+ {[%clk 0:00:28]} 44. Kd2 {[%clk 0:00:13]}  Ne6 {[%clk 0:00:29]} 45. Kd3 {[%clk 0:00:14]}  Nc5+ {[%clk 0:00:29]} 46. Kd2 {[%clk 0:00:14]}  a5 {[%clk 0:00:29]} 47. Bc7 {[%clk 0:00:14]}  a4 {[%clk 0:00:29]} 48. Kc2 {[%clk 0:00:08]}  axb3+ {[%clk 0:00:24]} 49. axb3 {[%clk 0:00:09]}  Ne6 {[%clk 0:00:23]} 50. Bg3 {[%clk 0:00:09]}  Ng7 {[%clk 0:00:23]} 51. Bf4 {[%clk 0:00:07]}  Ne6 {[%clk 0:00:17]} 52. Bg3 {[%clk 0:00:07]}  Nd8 {[%clk 0:00:13]} 53. Kd3 {[%clk 0:00:07]}  Ne6 {[%clk 0:00:14]} 54. b4 {[%clk 0:00:06]}  Nd8 {[%clk 0:00:11]} 55. Bf2 {[%clk 0:00:06]}  Nc6 {[%clk 0:00:11]} 56. Be1 {[%clk 0:00:06]}  Nd8 {[%clk 0:00:10]} 57. Bd2 {[%clk 0:00:05]}  Ne6 {[%clk 0:00:10]} 58. f4 {[%clk 0:00:05]}  Ng7 {[%clk 0:00:10]} 59. Be1 {[%clk 0:00:05]}  Ne6 {[%clk 0:00:08]} 60. Bg3 {[%clk 0:00:04]}  Ng7 {[%clk 0:00:06]} 61. Bf2 {[%clk 0:00:05]}  Nf5 {[%clk 0:00:06]} 62. Be1 {[%clk 0:00:05]}  Ne7 {[%clk 0:00:06]} 63. Bf2 {[%clk 0:00:05]}  Nf5 {[%clk 0:00:06]} 64. Be1 {[%clk 0:00:06]}  Ng7 {[%clk 0:00:06]} 65. Bf2 {[%clk 0:00:06]}  Ne6 {[%clk 0:00:06]} 66. f5 {[%clk 0:00:06]}  Nf4+ {[%clk 0:00:06]} 67. Kd2 {[%clk 0:00:04]}  Ke5 {[%clk 0:00:06]} 68. f6 {[%clk 0:00:04]}  Kxf6 {[%clk 0:00:06]} 69. Bxd4+ {[%clk 0:00:04]}  Kf5 {[%clk 0:00:06]} 70. Bf2 {[%clk 0:00:03]}  Ke4 {[%clk 0:00:05]} 71. Bg3 {[%clk 0:00:02]}  Nd5 {[%clk 0:00:05]} 72. Bd6 {[%clk 0:00:03]}  Kd4 {[%clk 0:00:04]} 73. Ke2 {[%clk 0:00:03]}  Ke4 {[%clk 0:00:04]} 74. Kd2 {[%clk 0:00:03]}  Kd4 {[%clk 0:00:04]} 75. Ke2 {[%clk 0:00:04]}  Ke4 {[%clk 0:00:04]} 76. Kf2 {[%clk 0:00:04]}  Nf6 {[%clk 0:00:03]} 77. Kg3 {[%clk 0:00:03]}  Ke3 {[%clk 0:00:02]} 78. Bc5+ {[%clk 0:00:03]}  Ke4 {[%clk 0:00:02]} 79. Kg2 {[%clk 0:00:04]}  Nd5 {[%clk 0:00:02]} 80. Kg3 {[%clk 0:00:04]}  Nf4 {[%clk 0:00:03]} 81. Bd6 {[%clk 0:00:04]}  Ne6 {[%clk 0:00:04]} 82. Kf2 {[%clk 0:00:03]}  Ng7 {[%clk 0:00:04]} 83. Be7 {[%clk 0:00:02]}  Nf5 {[%clk 0:00:04]} 84. Bg5 {[%clk 0:00:03]}  Nd4 {[%clk 0:00:05]} 85. Bf6 {[%clk 0:00:03]}  Nc6 {[%clk 0:00:05]} 86. Bc3 {[%clk 0:00:02]}  Ne7 {[%clk 0:00:05]} 87. Be1 {[%clk 0:00:02]}  Nd5 {[%clk 0:00:06]} 88. Ke2 {[%clk 0:00:03]}  Nf4+ {[%clk 0:00:06]} 89. Kf2 {[%clk 0:00:03]}  Nd3+ {[%clk 0:00:06]} 90. Ke2 {[%clk 0:00:04]}  Nxe1 {[%clk 0:00:07]} 91. Kxe1 {[%clk 0:00:05]}  Kf3 {[%clk 0:00:07]} 92. Kd2 {[%clk 0:00:05]}  Kg4 {[%clk 0:00:08]} 93. Kd3 {[%clk 0:00:06]}  Kxh4 {[%clk 0:00:09]} 94. Kd4 {[%clk 0:00:07]}  Kg4 {[%clk 0:00:10]} 95. Kc5 {[%clk 0:00:08]}  h4 {[%clk 0:00:10]} 96. Kxb5 {[%clk 0:00:09]}  h3 {[%clk 0:00:11]} 97. Ka6 {[%clk 0:00:10]}  h2 {[%clk 0:00:11]} 98. b5 {[%clk 0:00:11]}  h1=Q {[%clk 0:00:12]} 99. b6 {[%clk 0:00:12]}  Qa8+ {[%clk 0:00:12]} 100. Kb5 {[%clk 0:00:12]}  Qb8 {[%clk 0:00:13]} 101. Kc6 {[%clk 0:00:13]}  Kf5 {[%clk 0:00:14]} 102. b7 {[%clk 0:00:13]}  Ke5 {[%clk 0:00:15]} 103. Kb6 {[%clk 0:00:14]}  Kd6 {[%clk 0:00:15]} 104. Ka6 {[%clk 0:00:14]}  Kc6 {[%clk 0:00:15]} 105. Ka5 {[%clk 0:00:15]}  Qxb7 {[%clk 0:00:16]} 106. Ka4 {[%clk 0:00:16]}  Kc5 {[%clk 0:00:16]} 107. Ka3 {[%clk 0:00:16]}  Qb4+ {[%clk 0:00:17]} 108. Ka2 {[%clk 0:00:17]}  Kc4 {[%clk 0:00:18]} 109. Ka1 {[%clk 0:00:17]}  Kc3 {[%clk 0:00:19]} 110. Ka2 {[%clk 0:00:17]}  Qb2# {[%clk 0:00:19]} 0-1


[Site "https://www.chess.com"]

[Event "Titled Tuesday Blitz April 25 Early 2023"]
[White "The_Sherman_Variation"]
[Black "Mirzoev, Azer"]
[BlackFideId "13400304"]
[WhiteElo "2525"]
[BlackElo "2525"]
[Result "0-1"]
[Round "05"]
[TimeControl "180+2"]
[Date "2023.04.25"]
[WhiteClock "0:00:07"]
[BlackClock "0:00:10"]

1. Nf3 {[%clk 0:03:00]}  d5 {[%clk 0:02:59]} 2. g3 {[%clk 0:02:59]}  Nf6 {[%clk 0:02:58]} 3. Bg2 {[%clk 0:02:57]}  c6 {[%clk 0:02:58]} 4. O-O {[%clk 0:02:57]}  Bg4 {[%clk 0:02:57]} 5. h3 {[%clk 0:02:56]}  Bh5 {[%clk 0:02:57]} 6. c4 {[%clk 0:02:52]}  e6 {[%clk 0:02:56]} 7. cxd5 {[%clk 0:02:43]}  cxd5 {[%clk 0:02:55]} 8. d3 {[%clk 0:02:41]}  Nc6 {[%clk 0:02:55]} 9. Bf4 {[%clk 0:02:40]}  Bd6 {[%clk 0:02:51]} 10. Bxd6 {[%clk 0:02:39]}  Qxd6 {[%clk 0:02:51]} 11. Qb3 {[%clk 0:02:40]}  O-O {[%clk 0:02:51]} 12. Nbd2 {[%clk 0:02:34]}  Rfc8 {[%clk 0:02:45]} 13. Rfc1 {[%clk 0:02:33]}  Rc7 {[%clk 0:02:43]} 14. a3 {[%clk 0:02:11]}  Rac8 {[%clk 0:02:42]} 15. Qd1 {[%clk 0:02:11]}  h6 {[%clk 0:02:35]} 16. b4 {[%clk 0:02:09]}  Ne5 {[%clk 0:02:31]} 17. g4 {[%clk 0:01:55]}  Bg6 {[%clk 0:02:24]} 18. Nb3 {[%clk 0:01:49]}  Nxf3+ {[%clk 0:02:22]} 19. Bxf3 {[%clk 0:01:50]}  h5 {[%clk 0:02:21]} 20. Rxc7 {[%clk 0:01:45]}  Rxc7 {[%clk 0:02:19]} 21. Rc1 {[%clk 0:01:45]}  hxg4 {[%clk 0:02:17]} 22. hxg4 {[%clk 0:01:43]}  e5 {[%clk 0:01:46]} 23. Rxc7 {[%clk 0:01:36]}  Qxc7 {[%clk 0:01:46]} 24. g5 {[%clk 0:01:36]}  Nh7 {[%clk 0:01:45]} 25. Bxd5 {[%clk 0:01:32]}  Nxg5 {[%clk 0:01:45]} 26. Qc1 {[%clk 0:01:30]}  Qe7 {[%clk 0:01:32]} 27. Qc8+ {[%clk 0:01:22]}  Kh7 {[%clk 0:01:31]} 28. Nc5 {[%clk 0:01:19]}  b6 {[%clk 0:01:27]} 29. Nd7 {[%clk 0:01:08]}  Bh5 {[%clk 0:01:06]} 30. Nf8+ {[%clk 0:00:36]}  Kh6 {[%clk 0:01:05]} 31. Qc6+ {[%clk 0:00:36]}  f6 {[%clk 0:00:54]} 32. Ne6 {[%clk 0:00:26]}  Nxe6 {[%clk 0:00:38]} 33. Bxe6 {[%clk 0:00:27]}  Bxe2 {[%clk 0:00:37]} 34. Bf5 {[%clk 0:00:19]}  Bh5 {[%clk 0:00:33]} 35. Qe4 {[%clk 0:00:17]}  g6 {[%clk 0:00:29]} 36. Bh3 {[%clk 0:00:17]}  f5 {[%clk 0:00:27]} 37. Qa8 {[%clk 0:00:17]}  f4 {[%clk 0:00:20]} 38. Qh8+ {[%clk 0:00:15]}  Kg5 {[%clk 0:00:20]} 39. Kg2 {[%clk 0:00:15]}  Kh4 {[%clk 0:00:19]} 40. Kh2 {[%clk 0:00:14]}  Qg5 {[%clk 0:00:15]} 41. Qc8 {[%clk 0:00:14]}  e4 {[%clk 0:00:13]} 42. dxe4 {[%clk 0:00:13]}  Qe5 {[%clk 0:00:13]} 43. Qd8+ {[%clk 0:00:12]}  g5 {[%clk 0:00:12]} 44. f3 {[%clk 0:00:10]}  Bxf3 {[%clk 0:00:11]} 45. Qd3 {[%clk 0:00:09]}  g4 {[%clk 0:00:11]} 46. Bf1 {[%clk 0:00:09]}  g3+ {[%clk 0:00:10]} 47. Kg1 {[%clk 0:00:09]}  Qxe4 {[%clk 0:00:11]} 48. Qxe4 {[%clk 0:00:06]}  Bxe4 {[%clk 0:00:10]} 49. Bb5 {[%clk 0:00:07]}  f3 {[%clk 0:00:10]} 0-1


[Site "https://www.chess.com"]